bitfinex-derivatives/quotes_ETHF0:USTF0_20240913
["timestamp","ask_amount","ask_price","bid_price","bid_amount"]
[1726186097131,5.63848,2363.5,2363.3,0.8004]
[1726186097431,7.98901019,2363.5,2363.1,0.82173]
[1726186097638,1.22,2363.3,2363.1,0.3759]
[1726186097836,5.2087,2363.2,2362.8,0.099]
[1726186098037,1.22,2363.0,2362.9,0.42318]
[1726186098230,1.22,2363.0,2362.7,4.4679]
[1726186098231,1.64317,2363.0,2362.8,0.42319]
[1726186098729,0.42319,2362.9,2362.7,0.79911]
[1726186099045,0.3742,2362.8,2362.7,0.79911]
[1726186099230,1.1306,2362.8,2362.7,0.79911]
[1726186100036,1.5538,2362.8,2362.7,0.3759]
[1726186100238,2.7738,2362.8,2362.6,0.42323]
[1726186101324,2.7738,2362.8,2362.5,0.42325]
[1726186102034,3.2078,2362.6,2362.5,0.42325]
[1726186102935,3.2078,2362.6,2362.4,0.7818]
[1726186103140,3.2078,2362.6,2362.1,0.4762]
[1726186103141,1.6,2362.5,2362.1,0.4762]
[1726186103327,1.6,2362.5,2362.2,0.3886]
[1726186103328,0.7835,2362.4,2362.2,0.3886]
[1726186103527,3.9913,2362.4,2362.2,0.3886]
[1726186104139,3.9913,2362.4,2362.2,0.81191]
[1726186105436,1.22,2362.3,2362.2,0.3886]
[1726186109540,3.9913,2362.4,2362.2,0.3886]
[1726186109735,3.9913,2362.4,2362.2,0.8119]
[1726186111041,3.9913,2362.4,2362.2,0.3886]
[1726186111042,4.41457,2362.4,2362.2,0.3886]
[1726186111433,3.9913,2362.4,2362.1,0.42332]
[1726186111633,1.22,2362.2,2362.0,0.42334]
[1726186111835,3.21020226,2362.1,2362.0,0.42334]
[1726186112036,3.60740226,2362.1,2362.0,0.42334]
[1726186112432,0.39960226,2362.1,2362.0,0.42334]
[1726186112643,3.60740226,2362.1,2362.0,0.42334]
[1726186112843,0.39960226,2362.1,2362.0,0.42334]
[1726186113649,0.00240226,2362.1,2362.0,0.42334]
[1726186116638,0.00240226,2362.1,2362.0,0.42117344]
[1726186121346,2.03349,2362.3,2362.1,0.42332]
[1726186122150,1.6102,2362.3,2362.1,0.42332]
[1726186122355,1.6102,2362.3,2362.2,0.3733]
[1726186122847,6.26709,2362.3,2362.2,0.3733]
[1726186123052,2.03349,2362.3,2362.2,0.3733]
[1726186123751,1.6102,2362.3,2362.2,0.7119]
[1726186127557,2.03349,2362.3,2362.2,0.7119]
[1726186128548,1.6102,2362.3,2362.2,0.7119]
[1726186129651,2.03349,2362.3,2362.2,0.7119]
[1726186129853,1.6102,2362.3,2362.2,0.7119]
[1726186131161,1.6102,2362.3,2362.2,0.3386]
[1726186133367,2.03349,2362.3,2362.2,0.3386]
[1726186133554,1.6102,2362.3,2362.2,0.3386]
[1726186133956,2.03349,2362.3,2362.2,0.3386]
[1726186134551,1.6102,2362.3,2362.2,0.3386]
[1726186136773,1.6102,2362.3,2362.2,0.76191]
[1726186140469,3.9913,2362.4,2362.2,0.76191]
[1726186140674,3.2078,2362.4,2362.3,0.42329]
[1726186141082,3.2078,2362.4,2362.3,0.81229]
[1726186141374,0.42329,2362.3,2362.2,0.3386]
[1726186141579,2.44769,2362.3,2362.2,0.3386]
[1726186142565,4.79801019,2362.3,2362.2,0.3386]
[1726186143580,2.0244,2362.3,2362.2,0.3386]
[1726186144673,4.797074,2362.3,2362.2,0.3386]
[1726186144884,4.79708136,2362.3,2362.2,0.3386]
[1726186145075,2.0231361,2362.3,2362.2,0.3386]
[1726186147178,2.0231361,2362.3,2362.2,0.76191]
[1726186147385,0.4013361,2362.3,2362.2,0.76191]
[1726186148480,3.2078,2362.4,2362.2,0.3386]
[1726186148776,3.2078,2362.4,2362.3,0.42329]
[1726186149087,3.2078,2362.4,2362.3,0.80869]
[1726186152377,3.2078,2362.4,2362.3,1.14729]
[1726186155887,0.7699,2362.6,2362.5,0.42325]
[1726186156086,4.95275584,2362.8,2362.4,0.7666]
[1726186156289,4.95275584,2362.8,2362.4,1.18987]
[1726186156290,2.77634669,2362.5,2362.4,1.18987]
[1726186156787,2.77634669,2362.5,2362.4,5.42267]
[1726186156985,2.77634669,2362.6,2362.5,0.42325]
[1726186157287,1.22,2362.7,2362.4,4.9994]
[1726186157288,4.4278,2362.7,2362.6,0.42324]
[1726186157486,0.3777,2362.8,2362.7,0.42322]
[1726186157696,1.5977,2362.8,2362.7,0.42322]
[1726186158878,1.22,2362.8,2362.7,0.42322]
[1726186160289,3.99398212,2362.8,2362.7,0.42322]
[1726186163485,1.22,2362.8,2362.7,0.42322]
[1726186166688,4.39478212,2362.9,2362.8,0.4232]
[1726186167495,4.0054,2363.0,2362.6,0.3792]
[1726186167496,3.57158212,2363.0,2362.9,0.42318]
[1726186167790,0.3937,2363.0,2362.9,0.42318]
[1726186168001,2.77398212,2363.1,2363.0,0.42316]
[1726186168195,1.64314,2363.2,2363.1,0.42315]
[1726186168196,4.37788212,2363.2,2363.1,0.42315]
[1726186169198,1.6039,2363.2,2363.1,0.42315]
[1726186169599,4.37788212,2363.2,2363.1,0.42315]
[1726186169800,1.6039,2363.2,2363.1,0.42315]
[1726186170188,0.3767,2363.3,2363.0,1.22]
[1726186170390,3.42785584,2363.7,2363.2,1.05783]
[1726186170391,2.87298212,2363.7,2363.2,1.05783]
[1726186170592,0.7599,2363.8,2363.7,0.42304]
[1726186171902,0.7599,2363.8,2363.7,0.76144]
[1726186172496,0.7599,2363.8,2363.7,0.3384]
[1726186173702,0.7599,2363.8,2363.7,0.76144]
[1726186177396,0.7599,2363.8,2363.7,0.3384]
[1726186177703,1.18292,2363.8,2363.7,0.3384]
[1726186178304,1.18292,2363.8,2363.3,0.4231]
[1726186178305,0.42306,2363.6,2363.3,0.4231]
[1726186178501,1.9711,2363.5,2363.3,0.4231]
[1726186178800,1.22,2363.4,2363.3,0.4231]
[1726186181609,1.6105,2363.4,2363.3,0.4231]
[1726186182012,0.3905,2363.4,2363.3,0.4231]
[1726186184118,1.6105,2363.4,2363.0,0.3829]
[1726186184306,1.22,2363.2,2363.1,0.42315]
[1726186184506,1.64314,2363.2,2362.9,0.42317]
[1726186184712,4.4278,2363.0,2362.8,0.42319]
[1726186185209,4.8159,2363.0,2362.8,0.42319]
[1726186188215,3.5959,2363.0,2362.8,0.42319]
[1726186189210,0.3881,2363.0,2362.8,0.42319]
[1726186190607,0.3881,2363.0,2362.7,0.399]
[1726186190812,0.3881,2363.0,2362.9,0.42318]
[1726186196626,3.5959,2363.0,2362.9,0.42318]
[1726186197522,0.3881,2363.0,2362.9,0.42318]
[1726186197722,3.5959,2363.0,2362.9,0.42318]
[1726186197919,0.766,2363.1,2363.0,0.42316]
[1726186200728,3.6141,2363.3,2362.7,2.67703]
[1726186200930,1.64313,2363.2,2363.0,0.42316]
[1726186201127,1.22,2363.1,2363.0,0.42316]
[1726186201631,1.22,2363.1,2363.0,0.56376]
[1726186202926,1.22,2363.2,2363.0,0.1406]
[1726186203127,1.22,2363.2,2363.1,0.42315]
[1726186203322,1.22,2363.2,2363.1,0.83025]
[1726186203831,1.22,2363.2,2363.1,0.4071]
[1726186204326,1.22,2363.2,2363.1,0.83025]
[1726186204529,1.22,2363.2,2363.1,1.59565]
[1726186204724,0.3738,2363.3,2363.2,0.42313]
[1726186204930,0.3985,2363.4,2363.3,0.42311]
[1726186205932,4.77948212,2363.5,2363.4,0.42309]
[1726186206129,1.6189,2363.5,2363.4,0.42309]
[1726186206634,1.6189,2363.5,2363.3,0.4231]
[1726186206821,1.6189,2363.5,2363.1,1.1725]
[1726186207127,1.6189,2363.5,2363.3,0.4231]
[1726186207334,4.39288212,2363.5,2363.3,0.4231]
[1726186207527,1.6189,2363.5,2363.3,0.4231]
[1726186208227,4.39288212,2363.5,2363.4,0.42309]
[1726186208433,4.39288212,2363.5,2363.1,1.1725]
[1726186208434,1.6189,2363.5,2363.3,0.4231]
[1726186209034,0.3989,2363.5,2363.4,0.42309]
[1726186209334,1.20345,2363.7,2363.2,2.27781]
[1726186209335,4.77438212,2363.7,2363.2,2.27781]
[1726186209835,4.38058212,2363.7,2363.2,2.27781]
[1726186210234,1.6066,2363.7,2363.2,5.48561]
[1726186210430,1.22,2363.7,2363.6,0.42306]
[1726186210630,3.16548212,2363.8,2363.7,0.42304]
[1726186211335,4.38548212,2363.8,2363.7,0.42304]
[1726186214825,3.99398212,2363.8,2363.7,0.42304]
[1726186217737,3.99398212,2363.8,2363.6,0.42304]
[1726186217941,0.37,2363.7,2363.6,0.42306]
[1726186218332,0.7773,2363.7,2363.6,0.42306]
[1726186219042,0.7773,2363.7,2363.5,0.42307]
[1726186219236,4.8117,2363.6,2363.3,0.3789]
[1726186219439,1.22,2363.4,2363.3,0.802]
[1726186220138,1.22,2363.5,2363.3,0.3789]
[1726186220332,3.5917,2363.6,2363.5,0.42308]
[1726186220532,3.2078,2363.6,2363.5,0.42308]
[1726186220734,4.77128212,2363.7,2363.6,0.42306]
[1726186220735,3.55128212,2363.7,2363.6,0.42306]
[1726186221441,3.14398212,2363.7,2363.6,0.42306]
[1726186222740,0.37,2363.7,2363.6,0.42306]
[1726186222947,3.14398212,2363.7,2363.6,0.42306]
[1726186223840,0.37,2363.7,2363.6,0.42306]
[1726186224043,3.14398212,2363.7,2363.6,0.42306]
[1726186224739,0.37,2363.7,2363.6,0.42306]
[1726186225443,3.99398212,2363.8,2363.7,0.42304]
[1726186226540,2.77398212,2363.8,2363.7,0.42304]
[1726186226847,3.9654,2363.9,2363.8,0.42302]
[1726186227050,6.73370549,2363.9,2363.8,0.42302]
[1726186228142,3.52590549,2363.9,2363.8,0.42302]
[1726186230247,3.52590549,2363.9,2363.8,0.56362]
[1726186230440,3.15540549,2363.9,2363.8,0.56362]
[1726186230645,7.19610549,2364.0,2363.9,0.423]
[1726186230848,3.98830549,2364.0,2363.9,0.423]
[1726186231150,3.98830549,2364.0,2363.9,0.802]
[1726186231549,0.423,2363.9,2363.8,0.1406]
[1726186231743,7.55925584,2363.9,2363.2,0.198]
[1726186231947,7.55925584,2363.9,2363.1,4.206]
[1726186231948,4.4278,2363.3,2363.1,4.51514]
[1726186232245,0.3905,2363.2,2363.1,4.51514]
[1726186232441,0.3905,2363.2,2363.1,0.42314]
[1726186233038,1.6105,2363.2,2363.0,0.42315]
[1726186233240,4.4278,2363.1,2363.0,0.42315]
[1726186233643,4.4278,2363.1,2362.9,0.80217]
[1726186234051,4.4278,2363.1,2363.0,0.42316]
[1726186235946,4.4278,2363.1,2362.9,0.80217]
[1726186236147,3.2078,2363.1,2362.9,0.379]
[1726186236458,3.2078,2363.1,2363.0,0.42316]
[1726186239752,3.2078,2363.1,2362.9,0.80217]
[1726186239951,3.2078,2363.1,2362.7,0.8272]
[1726186240159,3.2078,2363.1,2362.6,0.42323]
[1726186240160,0.42319,2362.9,2362.6,0.42323]
[1726186240458,0.3925,2362.8,2362.6,0.42323]
[1726186240656,0.7651,2362.8,2362.6,0.42323]
[1726186242157,3.9729,2362.8,2362.6,0.42323]
[1726186245954,4.3961,2362.8,2362.5,0.42324]
[1726186246458,2.64,2362.6,2362.2,0.4233]
[1726186246653,3.2078,2362.5,2362.3,0.42328]
[1726186246854,3.5851,2362.5,2362.3,0.42328]
[1726186247048,0.3773,2362.5,2362.3,0.42328]
[1726186247252,3.5851,2362.5,2362.3,0.42328]
[1726186248166,3.5851,2362.5,2362.3,0.42329]
[1726186250661,0.3955,2362.4,2362.3,0.42329]
[1726186250854,0.3955,2362.4,2362.2,0.7933]
[1726186251959,0.3955,2362.4,2362.2,0.79331]
[1726186252164,3.0355,2362.4,2362.0,0.42334]
[1726186252365,3.2078,2362.2,2362.0,0.42334]
[1726186252563,3.2078,2362.2,2362.1,0.42333]
[1726186253254,3.45878,2362.4,2362.1,0.42333]
[1726186253455,3.0355,2362.4,2362.1,0.42333]
[1726186254264,3.45878,2362.4,2362.1,0.42333]
[1726186254462,0.42329,2362.3,2362.1,0.42333]
[1726186255457,5.8478,2362.2,2361.9,0.375]
[1726186255661,5.8478,2362.2,2361.8,0.80517]
[1726186255662,0.81773,2362.1,2361.8,0.80517]
[1726186255865,0.4044,2362.0,2361.8,0.42337]
[1726186256068,3.2078,2361.9,2361.8,0.42337]
[1726186260962,0.4044,2362.0,2361.9,0.42336]
[1726186262075,3.6122,2362.0,2361.8,0.42337]
[1726186262370,3.6122,2362.0,2361.9,0.42336]
[1726186262577,0.4044,2362.0,2361.9,0.42336]
[1726186265172,3.2078,2362.1,2362.0,0.42334]
[1726186265379,6.6115,2362.4,2361.6,2.23272]
[1726186265577,6.6115,2362.4,2362.1,0.42332]
[1726186265578,0.4233,2362.3,2362.1,0.42332]
[1726186265876,0.42331,2362.2,2362.0,0.42333]
[1726186266468,3.2078,2362.1,2362.0,0.42333]
[1726186270779,3.63113,2362.1,2361.9,0.42335]
[1726186270969,3.63113,2362.1,2361.6,1.1742]
[1726186271170,0.3981,2362.0,2361.9,0.42336]
[1726186272267,1.6181,2362.0,2361.9,0.42336]
[1726186272478,2.0025,2362.0,2361.9,0.42336]
[1726186273876,0.7825,2362.0,2361.9,0.42336]
[1726186274072,0.3844,2362.0,2361.9,0.42336]
[1726186274377,1.6044,2362.0,2361.9,0.42336]
[1726186275970,1.6044,2362.0,2361.6,1.1742]
[1726186276179,1.6044,2362.0,2361.3,4.092]
[1726186276180,4.4278,2361.7,2361.3,4.092]
[1726186276370,4.4278,2361.7,2361.2,0.3775]
[1726186276371,1.22,2361.4,2361.2,0.3775]
[1726186276571,0.373,2361.3,2360.9,3.2078]
[1726186276777,1.5906,2361.2,2361.1,0.42351]
[1726186277075,1.5906,2361.2,2361.0,0.42351]
[1726186278278,0.3706,2361.2,2361.1,0.42351]
[1726186278468,3.5808,2361.3,2361.1,0.42351]
[1726186278672,3.5808,2361.3,2361.2,0.42349]
[1726186278975,3.5808,2361.3,2361.1,0.42349]
[1726186279172,3.5808,2361.3,2361.2,0.7913]
[1726186280167,0.373,2361.3,2361.2,0.7913]
[1726186280777,3.2078,2361.3,2361.2,1.21479]
[1726186280976,3.2078,2361.3,2361.2,0.7913]
[1726186281384,0.4057,2361.5,2361.2,0.7913]
[1726186281881,3.2078,2361.3,2361.2,0.7913]
[1726186283075,3.2078,2361.3,2361.2,1.1854]
[1726186283282,3.2078,2361.3,2361.2,1.60889]
[1726186283473,0.82913,2361.5,2361.2,1.60889]
[1726186283883,1.22053,2361.5,2361.2,1.60889]
[1726186284471,3.2078,2361.3,2361.2,1.60889]
[1726186284779,1.22053,2361.5,2361.2,1.60889]
[1726186284973,3.2078,2361.3,2361.2,1.60889]
[1726186285376,1.22053,2361.5,2361.2,1.60889]
[1726186285878,0.7971,2361.5,2361.3,0.42346]
[1726186286086,3.06345,2361.4,2361.2,1.1854]
[1726186286276,3.6168,2361.3,2361.2,0.3941]
[1726186286675,3.6168,2361.3,2361.2,0.81759]
[1726186287073,3.6168,2361.3,2361.2,0.3941]
[1726186287882,3.6168,2361.3,2361.2,0.81759]
[1726186288377,3.6168,2361.3,2361.2,0.3941]
[1726186288774,3.6168,2361.3,2361.2,0.81759]
[1726186289171,3.6168,2361.3,2361.2,0.3941]
[1726186290781,3.6168,2361.3,2361.2,0.81759]
[1726186290993,3.6168,2361.3,2361.2,0.3941]
[1726186291486,3.6168,2361.3,2361.2,0.81759]
[1726186292579,3.6168,2361.3,2361.2,0.3941]
[1726186292783,3.6168,2361.3,2361.2,0.81759]
[1726186292983,3.6168,2361.3,2361.2,0.3941]
[1726186294379,3.6168,2361.3,2361.2,0.81759]
[1726186295082,3.6168,2361.3,2361.2,0.3941]
[1726186295483,3.6168,2361.3,2361.2,0.81759]
[1726186296581,3.6168,2361.3,2361.2,0.3941]
[1726186296777,3.6168,2361.3,2361.2,0.81759]
[1726186299681,3.2078,2361.3,2361.2,0.81759]
[1726186300186,4.4278,2361.3,2361.2,0.81759]
[1726186301287,5.97575118,2361.7,2361.2,5.8493]
[1726186301480,3.2078,2361.7,2361.2,0.3941]
[1726186301687,3.6312,2361.7,2361.5,0.42343]
[1726186301887,1.22,2361.6,2361.5,0.42343]
[1726186302995,1.604,2361.6,2361.5,0.42343]
[1726186304588,5.8384,2361.6,2361.5,0.42343]
[1726186304791,6.2212,2361.6,2361.5,0.42343]
[1726186307095,1.9868,2361.6,2361.5,0.42343]
[1726186307287,1.604,2361.6,2361.5,0.42343]
[1726186307493,1.22,2361.6,2361.5,0.42343]
[1726186309983,1.6248,2361.8,2361.6,0.42342]
[1726186310296,1.6248,2361.8,2361.7,1.2073]
[1726186310497,1.22,2361.8,2361.7,1.2073]
[1726186311299,3.2078,2362.0,2361.9,0.42336]
[1726186312194,3.98795118,2362.1,2362.0,0.42334]
[1726186312397,1.22,2362.1,2362.0,0.42334]
[1726186316191,4.37175118,2362.2,2362.1,0.42333]
[1726186317991,3.98795118,2362.2,2362.1,0.42333]
[1726186318192,3.2078,2362.3,2362.2,0.42331]
[1726186319301,3.2078,2362.3,2362.2,0.79911]
[1726186321998,2.76795118,2362.5,2362.4,0.42327]
[1726186322202,0.099,2362.8,2362.4,1.22]
[1726186322392,6.48485118,2363.1,2362.7,1.22]
[1726186322593,3.2078,2363.1,2363.0,0.42316]
[1726186322994,3.2078,2363.1,2363.0,4.65516]
[1726186323506,1.7108,2363.4,2363.3,0.42311]
[1726186323696,0.3818,2363.5,2363.4,0.42309]
[1726186324197,0.3818,2363.5,2362.9,3.9951]
[1726186324502,0.3818,2363.5,2363.3,0.42311]
[1726186324503,1.22,2363.4,2363.3,0.42311]
[1726186326103,0.3818,2363.5,2363.3,0.42311]
[1726186326295,0.3818,2363.5,2362.9,3.9951]
[1726186326806,0.3818,2363.5,2363.3,0.42311]
[1726186327000,0.7822,2363.5,2363.3,0.42311]
[1726186332208,1.20528,2363.5,2363.2,0.42312]
[1726186332412,0.7822,2363.5,2363.3,0.42311]
[1726186335013,0.7822,2363.5,2363.4,0.42309]
[1726186335209,0.3818,2363.5,2363.4,0.42309]
[1726186335903,0.3918,2363.7,2363.5,0.42308]
[1726186336103,3.38453879,2363.9,2363.7,0.42302]
[1726186336104,0.4037,2363.9,2363.7,0.42302]
[1726186336298,0.4037,2363.9,2363.8,0.42302]
[1726186336906,0.4037,2363.9,2363.7,0.7759]
[1726186336907,0.4037,2363.9,2363.7,0.82783]
[1726186337214,3.06303,2363.8,2363.4,0.3711]
[1726186337508,3.06303,2363.8,2363.6,0.42304]
[1726186337509,0.3837,2363.7,2363.6,0.42304]
[1726186338207,0.3837,2363.7,2363.4,0.42308]
[1726186338208,7.8219,2363.7,2363.4,0.42308]
[1726186338406,2.64,2363.5,2363.4,0.42308]
[1726186339010,3.0297,2363.5,2363.4,0.42308]
[1726186339712,0.3897,2363.5,2363.4,0.42308]
[1726186345418,3.0237,2363.7,2363.6,0.42306]
[1726186345911,6.2315,2363.7,2363.6,0.42306]
[1726186346915,6.65454,2363.7,2363.6,0.42306]
[1726186347108,6.2315,2363.7,2363.6,0.42306]
[1726186350017,3.0237,2363.7,2363.6,0.42306]
[1726186350412,0.3837,2363.7,2363.6,0.42306]
[1726186350617,3.5915,2363.7,2363.6,0.42306]
[1726186353122,7.8219,2363.7,2363.2,3.2078]
[1726186353419,0.42307,2363.6,2363.4,0.42309]
[1726186353627,0.3949,2363.5,2363.4,0.42309]
[1726186353810,0.7993,2363.5,2363.4,0.42309]
[1726186354414,0.7993,2363.5,2363.2,3.2078]
[1726186354415,1.22238,2363.5,2363.2,3.2078]
[1726186355219,1.22238,2363.5,2363.3,0.42311]
[1726186355619,7.439,2363.4,2363.0,0.7621]
[1726186355815,3.0281,2363.3,2363.0,0.7621]
[1726186356018,3.45122,2363.3,2363.0,1.18525]
[1726186356213,3.0281,2363.3,2363.0,1.18525]
[1726186356422,0.42314,2363.2,2363.0,0.42315]
[1726186356722,0.379,2363.1,2363.0,0.42316]
[1726186357021,0.7668,2363.1,2363.0,0.42316]
[1726186357717,0.7668,2363.1,2362.8,1.1646]
[1726186357718,3.45122,2363.3,2363.1,0.42313]
[1726186357924,3.45122,2363.3,2363.2,0.3841]
[1726186358219,0.81122,2363.3,2363.2,0.3841]
[1726186362120,0.81122,2363.3,2363.2,0.80723]
[1726186362121,0.3881,2363.3,2363.2,0.80723]
[1726186363223,3.05005906,2363.6,2363.4,0.42308]
[1726186363224,0.89296,2363.6,2363.4,0.42308]
[1726186363525,0.89296,2363.6,2363.3,0.8225]
[1726186363526,3.5946,2363.5,2363.3,0.8225]
[1726186364221,3.5946,2363.5,2363.4,0.42309]
[1726186365927,6.36108047,2363.5,2363.4,0.42309]
[1726186366925,0.3868,2363.5,2363.4,0.42309]
[1726186367419,3.15328047,2363.5,2363.4,0.42309]
[1726186368834,3.15973044,2363.5,2363.4,0.42309]
[1726186369226,3.15987136,2363.5,2363.4,0.42309]
[1726186369732,0.3868,2363.5,2363.4,0.42309]
[1726186371538,3.15985048,2363.5,2363.4,0.42309]
[1726186371732,0.3868,2363.5,2363.4,0.42309]
[1726186372228,3.32885584,2363.7,2363.3,0.7743]
[1726186372430,2.77310892,2363.5,2363.4,0.42309]
[1726186378152,2.77310892,2363.5,2363.4,1.48083]
[1726186378452,1.22,2363.7,2363.6,0.42306]
[1726186382952,0.3745,2363.8,2363.7,0.42304]
[1726186383343,1.22,2363.9,2363.8,0.42302]
[1726186383658,1.6052,2363.9,2363.8,0.42302]
[1726186383958,7.09146515,2364.1,2364.0,0.42299]
[1726186383959,6.53665584,2364.1,2364.0,0.42299]
[1726186384256,3.2078,2364.1,2364.0,0.42299]
[1726186384450,5.97965332,2364.1,2364.0,0.42299]
[1726186386252,2.43385,2364.3,2364.0,0.42299]
[1726186386253,2.77185332,2364.3,2364.2,0.42295]
[1726186386653,5.97965332,2364.4,2364.3,0.42293]
[1726186387356,3.2078,2364.4,2364.3,0.42293]
[1726186391259,5.18584332,2364.6,2364.3,0.42293]
[1726186391260,2.77185332,2364.6,2364.5,0.4229]
[1726186391462,1.1738,2364.9,2364.5,5.4488]
[1726186391665,1.1738,2364.9,2364.7,0.42285]
[1726186391864,1.1738,2364.9,2364.8,0.42284]
[1726186398087,0.7859,2364.9,2364.8,0.42284]
[1726186400069,1.20873,2364.9,2364.7,0.42286]
[1726186400281,0.3705,2364.8,2364.7,0.42286]
[1726186407876,0.42288,2364.7,2364.5,0.42289]
[1726186408078,7.8071,2364.8,2364.5,0.42289]
[1726186408079,4.00115,2364.8,2364.5,0.42289]
[1726186408286,0.3958,2364.6,2364.5,0.42289]
[1726186414083,0.79335,2364.8,2364.6,0.42288]
[1726186414274,0.7712,2364.8,2364.7,0.4098]
[1726186414681,1.19404,2364.8,2364.7,0.4098]
[1726186415079,0.7712,2364.8,2364.7,0.4098]
[1726186416176,3.979,2364.8,2364.7,0.4098]
[1726186422289,4.40184,2364.8,2364.7,0.4098]
[1726186424298,3.979,2364.8,2364.7,0.4098]
[1726186425589,3.6085,2364.8,2364.7,0.4098]
[1726186427691,4.03134,2364.8,2364.7,0.4098]
[1726186427893,8.26016,2364.8,2364.5,0.42289]
[1726186428095,4.03136,2364.8,2364.5,0.83099]
[1726186428790,4.03136,2364.8,2364.6,0.42288]
[1726186429189,6.80321332,2364.8,2364.6,0.42288]
[1726186429592,6.38035332,2364.8,2364.5,0.4081]
[1726186429787,0.42287,2364.7,2364.5,0.4081]
[1726186429994,0.3997,2364.6,2364.5,0.4081]
[1726186430386,3.17155332,2364.6,2364.5,0.4081]
[1726186431200,4.39155332,2364.6,2364.2,0.42294]
[1726186431509,3.2078,2364.4,2364.2,0.3903]
[1726186431802,3.2078,2364.4,2364.3,0.42293]
[1726186432403,3.2078,2364.4,2364.2,0.81324]
[1726186432793,1.64293,2364.3,2364.1,0.7929]
[1726186432990,1.22,2364.3,2364.1,1.21586]
[1726186433193,3.99185332,2364.3,2364.1,1.21586]
[1726186433394,0.3997,2364.2,2364.1,1.21586]
[1726186433594,0.3997,2364.2,2364.1,0.7929]
[1726186435096,3.59450332,2364.2,2364.1,0.4013]
[1726186435298,9.00015332,2364.2,2363.7,4.092]
[1726186435595,4.85081,2363.9,2363.7,0.3705]
[1726186435796,3.97367631,2363.8,2363.7,0.3705]
[1726186436003,0.42305,2363.7,2363.3,5.312]
[1726186436200,4.4278,2363.6,2363.4,0.82769]
[1726186436396,4.37528897,2363.7,2363.4,0.82768]
[1726186436602,3.2078,2363.6,2363.4,0.4046]
[1726186436814,2.02605,2363.7,2363.4,0.82768]
[1726186437191,3.2078,2363.6,2363.4,0.82768]
[1726186438011,3.2078,2363.6,2363.4,0.4046]
[1726186438394,3.2078,2363.6,2363.4,0.82769]
[1726186440001,3.2078,2363.6,2363.4,2.04769]
[1726186441001,0.80604,2363.7,2363.4,2.04768]
[1726186441002,3.5908,2363.7,2363.4,2.04768]
[1726186442502,3.5908,2363.7,2363.5,0.42307]
[1726186444197,0.383,2363.7,2363.5,0.42307]
[1726186444406,3.5908,2363.7,2363.5,0.42307]
[1726186445609,0.383,2363.7,2363.5,0.42307]
[1726186445909,3.2078,2363.6,2363.5,0.42307]
[1726186446308,0.383,2363.7,2363.6,0.42306]
[1726186446811,0.3997,2363.8,2363.7,0.42304]
[1726186447905,0.3997,2363.8,2363.6,0.42305]
[1726186448599,0.3997,2363.8,2363.7,0.3883]
[1726186449715,0.3997,2363.8,2363.7,0.81134]
[1726186456499,4.0323,2363.9,2363.8,0.42302]
[1726186456500,3.6093,2363.9,2363.8,0.42302]
[1726186456704,4.0142,2363.9,2363.8,0.42302]
[1726186458311,4.0142,2363.9,2363.8,0.82412]
[1726186458910,0.8064,2363.9,2363.8,0.82412]
[1726186459213,4.0142,2363.9,2363.8,0.82412]
[1726186461917,4.0142,2363.9,2363.8,1.22902]
[1726186464317,3.6127,2363.9,2363.8,1.22902]
[1726186465006,0.4049,2363.9,2363.8,1.22902]
[1726186465205,3.6127,2363.9,2363.8,1.22902]
[1726186472621,3.2078,2363.9,2363.8,1.22902]
[1726186478313,5.98008897,2363.9,2363.8,1.22902]
[1726186479115,2.77228897,2363.9,2363.8,1.22902]
[1726186479313,3.5833,2364.0,2363.4,4.31780507]
[1726186479527,2.77329181,2363.8,2363.6,0.42306]
[1726186479725,3.15299181,2363.8,2363.6,0.42306]
[1726186479924,0.4047,2363.7,2363.6,0.42306]
[1726186480221,3.17799181,2363.7,2363.6,0.42306]
[1726186480619,3.17799181,2363.7,2363.6,1.64306]
[1726186480821,0.4047,2363.7,2363.6,1.64306]
[1726186481321,3.17799181,2363.7,2363.6,1.64306]
[1726186484414,3.57999181,2363.7,2363.6,1.64306]
[1726186487119,0.8067,2363.7,2363.6,1.64306]
[1726186489732,3.58245037,2363.7,2363.6,1.64306]
[1726186489936,2.77575037,2363.7,2363.6,1.64306]
[1726186492934,2.77575037,2363.7,2363.6,0.42306]
[1726186499529,5.98355037,2363.7,2363.6,0.42306]
[1726186500036,5.98355037,2363.7,2363.6,4.65346]
[1726186500037,2.77575037,2363.7,2363.6,4.65346]
[1726186500432,2.77617429,2363.7,2363.6,4.2304]
[1726186500740,2.77617429,2363.7,2363.6,4.65346]
[1726186500937,2.77617429,2363.8,2363.7,0.42304]
[1726186501437,0.3751,2363.9,2363.8,0.42302]
[1726186503835,2.77600183,2363.9,2363.8,6.93096]
[1726186504038,2.77600183,2364.0,2363.9,0.423]
[1726186504237,2.77600183,2364.0,2363.9,1.643]
[1726186504429,2.77600183,2364.0,2363.9,5.8734]
[1726186504944,4.89797584,2364.4,2364.2,0.42294]
[1726186508045,4.47505584,2364.4,2364.3,0.42293]
[1726186508234,4.47505584,2364.4,2364.2,0.42294]
[1726186509031,4.47505584,2364.4,2364.3,0.42293]
[1726186509434,1.1462,2364.4,2364.3,0.42293]
[1726186510837,7.19046515,2364.8,2364.3,4.2296]
[1726186510838,3.32885584,2364.7,2364.3,4.2296]
[1726186511039,2.7722291,2364.5,2364.4,0.42291]
[1726186511244,2.7722291,2364.5,2364.4,1.64291]